fUSD/lending_fUSD_20240409
["ID","MTS","AMOUNT","RATE_DAILY","PERIOD"]
[321923775,1712635831838,-203.92900507,0.00018055,2]
[321923776,1712635831847,-1000.0,0.00018154,2]
[321923777,1712635831857,-1296.57067696,0.00018154,2]
[321923778,1712635831869,-183.76246893,0.00018157,2]
[321923779,1712635831879,-1042.90820021,0.00018356,2]
[321923780,1712635831890,-1090.97,0.00019085,2]
[321923781,1712635831900,-2510.27,0.00019088,2]
[321923782,1712635831911,-150.0,0.00019138,2]
[321923783,1712635831920,-150.0,0.00019146,2]
[321923784,1712635831930,-2086.6,0.00019147,2]
[321923785,1712635831940,-234.17,0.00019147,2]
[321923786,1712635831949,-230.13,0.00019149,2]
[321923787,1712635831959,-250.0,0.00019153,2]
[321923789,1712635831968,-3211.13,0.00019153,2]
[321923791,1712635831977,-1075.83,0.00019166,2]
[321923793,1712635831987,-1303.77,0.00019196,2]
[321923795,1712635831996,-1000.0,0.00019211,2]
[321923797,1712635832005,-668.58,0.00019283,2]
[321923799,1712635832015,-1049.65305906,0.00019297,2]
[321924025,1712635839997,-921.62500001,0.0001902,2]
[321924027,1712635840009,-863.65499999,0.0001902,2]
[321924029,1712635840019,-24.09500003,0.00019297,2]
[321924039,1712635842683,-22826.25194091,0.00019297,2]
[321924040,1712635842693,-500.0,0.0001931,2]
[321924041,1712635842702,-200.0,0.00019323,2]
[321924042,1712635842712,-1731.86,0.00019348,2]
[321924043,1712635842721,-154.45,0.00019355,2]
[321924044,1712635842731,-3419.46,0.00019371,2]
[321924045,1712635842740,-168.86,0.00019467,2]
[321924046,1712635842750,-2238.8,0.00019494,2]
[321924047,1712635842761,-748.79,0.00019527,2]
[321924048,1712635842771,-281.25127245,0.00019718,2]
[321924049,1712635842781,-158.69,0.00019764,2]
[321924050,1712635842790,-1296.06270792,0.00019929,2]
[321924051,1712635842799,-289.54133647,0.00019998,2]
[321924052,1712635842808,-202.92016404,0.00019998,2]
[321924053,1712635842817,-1310.73729941,0.00019998,2]
[321924054,1712635842826,-235.8514064,0.00019998,2]
[321924055,1712635842837,-257.70434992,0.00019998,2]
[321924056,1712635842846,-156.76010848,0.00019998,2]
[321924057,1712635842856,-163.08138031,0.00019998,2]
[321924058,1712635842867,-155.41715277,0.00019998,2]
[321924059,1712635842877,-224.59406512,0.00019998,2]
[321924060,1712635842886,-3866.57965504,0.00019998,2]
[321924061,1712635842896,-296.70533787,0.00019998,2]
[321924062,1712635842905,-327.9812912,0.00019999,2]
[321924063,1712635842914,-156.31771666,0.00019999,2]
[321924064,1712635842923,-172.83221478,0.00019999,2]
[321924065,1712635842932,-1706.94463402,0.00019999,2]
[321924066,1712635842943,-308.92996826,0.00019999,2]
[321924067,1712635842953,-1216.1871528,0.0002,2]
[321924068,1712635842962,-1041.87363058,0.0002,2]
[321924069,1712635842971,-287.50882586,0.0002,2]
[321924070,1712635842980,-254.50632914,0.0002,2]
[321924071,1712635842989,-155.1984937,0.0002,2]
[321924072,1712635842998,-326.22556418,0.0002,2]
[321924073,1712635843008,-858.15283199,0.0002,2]
[321924074,1712635843018,-241.455741,0.00020274,2]
[321924075,1712635843030,-868.55198979,0.00020685,2]
[321924076,1712635843042,-519.07030047,0.000207,2]
[321924077,1712635843052,-1000.0,0.00020832,2]
[321924078,1712635843062,-500.0,0.00020832,2]
[321924079,1712635843072,-2970.46216854,0.00020874,2]
[321924080,1712635843082,-4173.95815875,0.00020874,2]
[321924081,1712635843092,-980.25365676,0.00020888,2]
[321924082,1712635843101,-2518.86082912,0.000209,2]
[321924083,1712635843111,-1033.9663475,0.000209,2]
[321924084,1712635843120,-3010.65345713,0.000209,2]
[321924085,1712635843130,-158.8754925,0.000209,2]
[321924086,1712635843140,-636.67022,0.000209,2]
[321924087,1712635843150,-183.76246893,0.000209,2]
[321924088,1712635843159,-7500.0,0.000209,2]
[321924089,1712635843169,-2041.58204884,0.000209,2]
[321924090,1712635843180,-315.56597383,0.000209,2]
[321924091,1712635843190,-199.57889116,0.000209,3]
[321924092,1712635843199,-314.040912,0.00020928,2]
[321924093,1712635843209,-314.040912,0.00020938,2]
[321924094,1712635843220,-314.040912,0.00020948,2]
[321924095,1712635843229,-256.38,0.00020955,2]
[321924096,1712635843239,-314.040912,0.00020958,2]
[321924097,1712635843250,-314.040912,0.00020968,2]
[321924098,1712635843261,-3544.985141,0.00020974,2]
[321924099,1712635843271,-11232.8630284,0.00020974,2]
[321924100,1712635843282,-82349.4621936,0.00020974,2]
[321924101,1712635843291,-1650.0026369,0.00020977,2]
[321924102,1712635843300,-157.51659862,0.00020978,2]
[321924103,1712635843309,-314.040912,0.00020978,2]
[321924104,1712635843319,-176.97693025,0.00020978,2]
[321924105,1712635843328,-155.25592387,0.00020978,2]
[321924107,1712635843337,-156.50557827,0.00020978,2]
[321924108,1712635843346,-167.51746447,0.00020978,2]
[321924110,1712635843356,-195.24769107,0.00020978,2]
[321924112,1712635843367,-253.62432224,0.00020978,2]
[321924114,1712635843376,-851.56211152,0.00020978,2]
[321924116,1712635843388,-216.20617856,0.00020978,2]
[321924117,1712635843398,-406.03730684,0.00020978,2]
[321924118,1712635843407,-1974.90215322,0.00020978,2]
[321924119,1712635843417,-1134.79791883,0.00020979,2]
[321924120,1712635843427,-481.06408601,0.00020979,2]
[321924121,1712635843437,-2511.36860627,0.00020979,2]
[321924122,1712635843446,-47790.80052245,0.00020979,2]
[321924123,1712635843456,-150902.77476104,0.0002098,2]
[321924124,1712635843466,-471.040912,0.00020988,2]
[321924125,1712635843476,-2210.0,0.0002099,2]
[321924126,1712635843487,-640.1109247,0.00020998,2]
[321924127,1712635843498,-471.040912,0.00020998,2]
[321924128,1712635843510,-1322.22344996,0.00020999,2]
[321924129,1712635843520,-679.00073948,0.00021,2]
[321924130,1712635843531,-523.0,0.00021,2]
[321924131,1712635843541,-805.92129785,0.00021,2]
[321924132,1712635843550,-251209.62356878,0.00021,2]
[321924133,1712635843578,-7140.11250145,0.00021,2]
[321924134,1712635843737,-273.221,0.00021,2]
[321924144,1712635845992,-988.92824026,0.000209,2]
[321924145,1712635846001,-924.09272405,0.00020973,2]
[321924146,1712635846011,-216.08179167,0.00020973,2]
[321924147,1712635846021,-621.51573136,0.00020977,2]
[321924148,1712635846031,-9136.97868678,0.00021,2]
[321924149,1712635846212,-554.18566314,0.00021,2]
[321924150,1712635846224,-10988.54894645,0.00021,2]
[321924151,1712635846246,-110608.1242396,0.00021,2]
[321924152,1712635846257,-508.5,0.00021,2]
[321924153,1712635846281,-323.37009638,0.00021,2]
[321924154,1712635849527,260.11367177,0.00015287,2]
[321924155,1712635849557,150.0,0.00015287,2]
[321924156,1712635849577,150.0,0.00015287,2]
[321924157,1712635849598,150.0,0.00015287,2]
[321924158,1712635849620,150.0,0.00015287,2]
[321924159,1712635849641,150.0,0.00015287,2]
[321924160,1712635849662,150.0,0.00015287,2]
[321924161,1712635849682,150.0,0.00015287,2]
[321924162,1712635849703,150.0,0.00015287,2]
[321924163,1712635849723,150.0,0.00015287,2]
[321924164,1712635849744,150.0,0.00015287,2]
[321924165,1712635849765,150.0,0.00015287,2]
[321924166,1712635849788,150.0,0.00015287,2]
[321924167,1712635849808,150.0,0.00015287,2]
[321924168,1712635849828,242.09359649,0.00015287,2]
[321924169,1712635849850,212.3132292,0.00015287,2]
[321924170,1712635849871,212.3132292,0.00015287,2]
[321924171,1712635849891,212.3132292,0.00015287,2]
[321924172,1712635849911,212.3132292,0.00015287,2]
[321924173,1712635849931,212.3132292,0.00015287,2]
[321924174,1712635849952,212.3132292,0.00015287,2]
[321924175,1712635849971,212.3132292,0.00015287,2]
[321924176,1712635849991,212.3132292,0.00015287,2]
[321924177,1712635850010,212.3132292,0.00015287,2]
[321924178,1712635850029,212.3132292,0.00015287,2]
[321924179,1712635850054,2293.15956338,0.00015287,2]
[321924180,1712635860160,150.0,0.00015287,2]
[321924181,1712635860184,150.0,0.00015287,2]
[321924182,1712635860209,150.0,0.00015287,2]
[321924183,1712635860230,150.0,0.00015287,2]
[321924184,1712635860251,117.05916113,0.00015287,2]
[321924185,1712635869527,212.3132292,0.00015287,2]
[321924186,1712635869549,15.2706528,0.00015287,2]
[321924187,1712635876122,150.0,0.00015287,2]
[321924188,1712635876146,150.0,0.00015287,2]
[321924189,1712635876170,150.0,0.00015287,2]
[321924190,1712635876195,150.0,0.00015287,2]
[321924191,1712635887170,150.0,0.00015287,2]
[321924192,1712635887191,150.0,0.00015287,2]
[321924193,1712635887211,150.0,0.00015287,2]
[321924194,1712635887232,150.0,0.00015287,2]
[321924195,1712635887252,150.0,0.00015287,2]
[321924196,1712635887272,150.0,0.00015287,2]
[321924197,1712635887529,150.0,0.00015287,2]
[321924198,1712635887550,150.0,0.00015287,2]
[321924199,1712635887573,150.0,0.00015287,2]
[321924200,1712635904083,150.0,0.00015287,2]
[321924201,1712635904103,150.0,0.00015287,2]
[321924202,1712635904122,150.0,0.00015287,2]
[321924203,1712635904141,150.0,0.00015287,2]
[321924204,1712635907536,197.0425764,0.00015287,2]
[321924205,1712635907556,212.3132292,0.00015287,2]
[321924206,1712635907578,212.3132292,0.00015287,2]
[321924207,1712635907598,128.3309652,0.00015287,2]
[321924209,1712635925540,150.0,0.00015287,2]
[321924210,1712635925561,150.0,0.00015287,2]
[321924211,1712635925582,150.0,0.00015287,2]
[321924212,1712635925606,150.0,0.00015287,2]
[321924214,1712635941544,83.982264,0.00015287,2]
[321924215,1712635941565,212.3132292,0.00015287,2]
[321924216,1712635941585,212.3132292,0.00015287,2]
[321924217,1712635941606,91.3912776,0.00015287,2]
[321924220,1712636358269,150.53,0.00024329,15]
[321924222,1712636643057,120.9219516,0.00017713,2]
[321924223,1712636643084,212.3132292,0.00017713,2]
[321924224,1712636643118,212.3132292,0.00017713,2]
[321924225,1712636643142,297.62159,0.00017713,2]
[321924233,1712636885568,150.53,0.00024329,15]
[321924279,1712637031962,-500.0,0.000179,2]
[321924282,1712637031973,-154.91576623,0.00017901,2]
[321924284,1712637031983,-457.16053016,0.00018,2]
[321924290,1712637032033,-362.71378586,0.00018,2]
[321924292,1712637032043,-183.36519249,0.00018001,2]
[321924294,1712637032052,-154.91576623,0.00018651,2]
[321924296,1712637032062,-154.91576623,0.00019401,2]
[321924298,1712637032071,-717.99,0.00019401,2]
[321924300,1712637032080,-161.36,0.000195,2]
[321924302,1712637032089,-1100.59,0.00019523,2]
[321924304,1712637032099,-168.86,0.00019539,2]
[321924306,1712637032109,-163.07,0.00019616,2]
[321924308,1712637032118,-8370.96,0.00019621,2]
[321924309,1712637032128,-800.0,0.00019632,2]
[321924311,1712637032138,-150.99,0.00019726,2]
[321924313,1712637032147,-474.82,0.00019856,2]
[321924315,1712637032156,-474.82,0.0001991,2]
[321924317,1712637032165,-474.82,0.00019965,2]
[321924319,1712637032174,-843.17,0.00019977,2]
[321924321,1712637032184,-858.15283199,0.00020018,2]
[321924323,1712637032194,-474.82,0.00020019,2]
[321924325,1712637032206,-200.0,0.00020036,2]
[321924327,1712637032216,-155.64,0.00020036,2]
[321924329,1712637032227,-474.82,0.00020074,2]
[321924331,1712637032236,-474.82,0.00020128,2]
[321924333,1712637032246,-154.91576623,0.0002015,2]
[321924335,1712637032256,-176.61,0.00020179,2]
[321924337,1712637032265,-474.82,0.00020183,2]
[321924339,1712637032275,-150.0,0.00020198,2]
[321924340,1712637032285,-150.0,0.0002021,2]
[321924341,1712637032294,-335.05,0.0002021,2]
[321924342,1712637032304,-9236.32342272,0.00020214,2]
[321924343,1712637032314,-474.82,0.00020237,2]
[321924344,1712637032323,-474.82,0.00020292,2]
[321924345,1712637032333,-474.82,0.00020346,2]
[321924346,1712637032342,-474.82,0.00020401,2]
[321924348,1712637032351,-474.82,0.00020455,2]
[321924350,1712637032360,-150.0,0.0002047,2]
[321924351,1712637032369,-474.82,0.0002051,2]
[321924353,1712637032378,-474.82,0.00020564,2]
[321924355,1712637032388,-150.0,0.00020577,2]
[321924357,1712637032398,-150.0,0.00020579,2]
[321924360,1712637032407,-150.0,0.00020595,2]
[321924361,1712637032416,-474.82,0.00020619,2]
[321924364,1712637032427,-474.82,0.00020673,2]
[321924365,1712637032436,-1165.68216733,0.00020694,2]
[321924367,1712637032445,-474.82,0.00020727,2]
[321924369,1712637032454,-474.82,0.00020782,2]
[321924371,1712637032464,-1000.0,0.00020832,2]
[321924373,1712637032475,-500.0,0.00020832,2]
[321924375,1712637032485,-474.82,0.00020836,2]
[321924377,1712637032494,-690.60599011,0.00020873,2]
[321924379,1712637032503,-27392.3926,0.00020874,2]
[321924381,1712637032514,-4584.12885774,0.00020877,2]
[321924383,1712637032523,-2942.9625892,0.00020877,2]
[321924385,1712637032532,-315.5659738,0.00020877,2]
[321924387,1712637032542,-857.7219497,0.00020878,2]
[321924389,1712637032551,-746.9717,0.00020879,2]
[321924391,1712637032560,-1000.0,0.00020879,2]
[321924393,1712637032569,-474.82,0.00020891,2]
[321924395,1712637032579,-158.8754925,0.00020899,2]
[321924397,1712637032588,-2759.7656691,0.00020899,2]
[321924399,1712637032597,-154.91576623,0.000209,2]
[321924401,1712637032606,-1015.0,0.000209,3]
[321924403,1712637032615,-659.2854935,0.000209,2]
[321924405,1712637032624,-6720.49229669,0.000209,2]
[321924407,1712637032633,-1003.0,0.000209,3]
[321924409,1712637032642,-1361.05469924,0.000209,2]
[321924411,1712637032652,-157.040913,0.00020918,2]
[321924413,1712637032661,-314.040913,0.00020928,2]
[321924415,1712637032671,-314.040913,0.00020938,2]
[321924417,1712637032680,-314.040913,0.00020948,2]
[321924419,1712637032689,-150.0,0.00020955,2]
[321924421,1712637032698,-314.040913,0.00020958,2]
[321924423,1712637032707,-150.0,0.00020962,2]
[321924425,1712637032717,-314.040912,0.00020968,2]
[321924427,1712637032728,-1067.92829749,0.00020969,2]
[321924429,1712637032737,-170.56334602,0.00020972,2]
[321924431,1712637032746,-538.1024757,0.00020976,2]
[321924433,1712637032755,-500.0,0.00020976,2]
[321924435,1712637032764,-610.85299172,0.00020976,2]
[321924437,1712637032773,-500.0,0.00020976,2]
[321924439,1712637032782,-505.64849177,0.00020976,2]
[321924440,1712637032791,-502.58711056,0.00020976,2]
[321924442,1712637032801,-500.0,0.00020976,2]
[321924444,1712637032810,-500.0,0.00020976,2]
[321924446,1712637032819,-507.78412122,0.00020976,2]
[321924448,1712637032830,-500.0,0.00020976,2]
[321924450,1712637032839,-500.0,0.00020976,2]
[321924452,1712637032848,-500.0,0.00020976,2]
[321924454,1712637032858,-506.47120111,0.00020976,2]
[321924456,1712637032868,-1074.11,0.00020976,2]
[321924458,1712637032877,-500.0,0.00020976,2]
[321924460,1712637032886,-512.06065323,0.00020976,2]
[321924462,1712637032896,-515.53604022,0.00020976,2]
[321924464,1712637032906,-657.77,0.00020976,2]
[321924466,1712637032915,-647.53072804,0.00020976,2]
[321924468,1712637032924,-500.0,0.00020976,2]
[321924470,1712637032933,-500.0,0.00020976,2]
[321924472,1712637032943,-33701.5989202,0.00020977,2]
[321924474,1712637032953,-9410.33,0.00020977,2]
[321924476,1712637032963,-2061.22,0.00020977,2]
[321924477,1712637032975,-2500.86,0.00020977,2]
[321924479,1712637032985,-1584.61,0.00020977,2]
[321924480,1712637032994,-30574.77768619,0.00020977,2]
[321924481,1712637033029,-1785.75,0.00020977,2]
[321924482,1712637033061,-1090.13882869,0.00020977,2]
[321924483,1712637033077,-29480.00348512,0.00020977,2]
[321924484,1712637033088,-5149.69,0.00020977,2]
[321924485,1712637033097,-1086.64,0.00020977,2]
[321924486,1712637033106,-1746.16,0.00020977,2]
[321924487,1712637033116,-3140.08,0.00020977,2]
[321924488,1712637033125,-4667.35,0.00020977,2]
[321924489,1712637033134,-1251.53,0.00020977,2]
[321924490,1712637033144,-2903.7,0.00020977,2]
[321924491,1712637033154,-5042.22,0.00020977,2]
[321924492,1712637033163,-3424.49,0.00020977,2]
[321924493,1712637033173,-4934.69,0.00020977,2]
[321924494,1712637033183,-3847.59,0.00020977,2]
[321924495,1712637033193,-2452.66,0.00020977,2]
[321924496,1712637033206,-1673.19651487,0.00020977,2]
[321924505,1712637037940,-1029.27,0.00020977,2]
[321924520,1712637038337,-5180.27348513,0.00020977,2]
[321924523,1712637038347,-5672.68,0.00020977,2]
[321924524,1712637038356,-5672.68,0.00020977,2]
[321924526,1712637038366,-3973.48,0.00020977,2]
[321924529,1712637038375,-5540.14,0.00020977,2]
[321924531,1712637038385,-7408.18,0.00020977,2]
[321924533,1712637038394,-3243.77,0.00020977,2]
[321924535,1712637038405,-5832.05,0.00020977,2]
[321924537,1712637038414,-1796.67,0.00020977,2]
[321924539,1712637038423,-5953.59,0.00020977,2]
[321924541,1712637038432,-1302.29,0.00020977,2]
[321924543,1712637038441,-4392.22,0.00020977,2]
[321924545,1712637038450,-1141.99897546,0.00020977,2]
[321924547,1712637038463,-3044.6768209,0.00020977,2]
[321924560,1712637038578,-398.64255673,0.00020977,2]
[321924721,1712637040165,-500.0,0.00020976,2]
[321924723,1712637040175,-602.47164691,0.00020977,2]
[321924725,1712637040186,-671.22296734,0.00020977,2]
[321924727,1712637040197,-369.00147569,0.00020977,2]
[321924729,1712637040209,-1069.16,0.00020977,2]
[321924731,1712637040221,-132.22555697,0.00020977,2]
[321924733,1712637040232,-500.0,0.00020977,2]
[321924735,1712637040242,-1589.08092193,0.00020977,2]
[321924740,1712637040281,-2314.893918,0.00020977,2]
[321924743,1712637040293,-138.23516007,0.00020977,2]
[321924745,1712637040302,-475.91541993,0.00020977,2]
[321924756,1712637040400,-61.25941234,0.00020977,2]
[321925004,1712637042796,-520.00210225,0.00020976,2]
[321925007,1712637042805,-55.1353975,0.00020976,2]
[321925042,1712637043052,-159.66311296,0.000209,3]
[321925044,1712637043061,-563.7346025,0.00020976,2]
[321925046,1712637043071,-500.0,0.00020976,2]
[321925048,1712637043080,-500.0,0.00020976,2]
[321925050,1712637043089,-540.96405673,0.00020977,2]
[321925058,1712637043156,-1145.881111,0.00020977,2]
[321925060,1712637043165,-21814.72,0.00020977,2]
[321925062,1712637043174,-11315.09,0.00020977,2]
[321925072,1712637043264,-4397.65,0.00020977,2]
[321925074,1712637043274,-5176.82,0.00020977,2]
[321925076,1712637043283,-2080.11,0.00020977,2]
[321925078,1712637043293,-500.0,0.00020977,2]
[321925080,1712637043302,-3642.1,0.00020977,2]
[321925083,1712637043311,-5124.73,0.00020977,2]
[321925085,1712637043320,-3925.75,0.00020977,2]
[321925087,1712637043329,-3713.69,0.00020977,2]
[321925089,1712637043339,-498.730889,0.00020977,2]
[321925091,1712637043349,-976.18909889,0.00020977,2]
[321925093,1712637043363,-1388.07001211,0.00020977,2]
[321925095,1712637043372,-566.23983555,0.00020977,2]
[321925097,1712637043383,-7777.95016445,0.00020977,2]
[321925099,1712637043392,-4389.32,0.00020977,2]
[321925101,1712637043401,-4145.68,0.00020977,2]
[321925103,1712637043410,-9130.16,0.00020977,2]
[321925105,1712637043419,-20.49718136,0.00020977,2]
[321925108,1712637043430,-2365.45281864,0.00020977,2]
[321925110,1712637043439,-6622.89,0.00020977,2]
[321925112,1712637043448,-3733.3,0.00020977,2]
[321925114,1712637043457,-13627.22,0.00020977,2]
[321925115,1712637043465,-9569.39,0.00020977,2]
[321925116,1712637043475,-4803.07,0.00020977,2]
[321925117,1712637043486,-8117.6,0.00020977,2]
[321925118,1712637043495,-5097.26,0.00020977,2]
[321925119,1712637043504,-500.0,0.00020977,2]
[321925120,1712637043513,-17793.17,0.00020977,2]
[321925122,1712637043522,-2434.74,0.00020977,2]
[321925124,1712637043531,-314.040912,0.00020978,2]
[321925126,1712637043544,-500.0,0.00020978,2]
[321925128,1712637043553,-502.77336872,0.00020978,2]
[321925130,1712637043562,-502.67834581,0.00020978,2]
[321925132,1712637043571,-503.33235994,0.00020978,2]
[321925134,1712637043580,-423.3550097,0.00020978,2]
[321925136,1712637043589,-502.81632007,0.00020978,2]
[321925138,1712637043598,-503.40016986,0.00020978,2]
[321925140,1712637043607,-500.0,0.00020978,2]
[321925142,1712637043616,-562.28449134,0.00020978,2]
[321925144,1712637043625,-501.60180161,0.00020978,2]
[321925146,1712637043635,-500.0,0.00020978,2]
[321925148,1712637043644,-496.51677854,0.00020978,2]
[321925150,1712637043653,-500.0,0.00020978,2]
[321925152,1712637043662,-500.0,0.00020978,2]
[321925154,1712637043671,-500.0,0.00020978,2]
[321925156,1712637043680,-519.12353443,0.00020978,2]
[321925158,1712637043689,-1057.24,0.00020978,2]
[321925160,1712637043699,-500.0,0.00020978,2]
[321925162,1712637043708,-501.87611416,0.00020978,2]
[321925164,1712637043717,-2162.13,0.00020978,2]
[321925166,1712637043726,-503.02377822,0.00020978,2]
[321925168,1712637043735,-502.77388539,0.00020978,2]
[321925170,1712637043745,-770.68,0.00020978,2]
[321925173,1712637043755,-738.74,0.00020978,2]
[321925175,1712637043765,-1644.28,0.00020978,2]
[321925177,1712637043775,-1568.68,0.00020978,2]
[321925179,1712637043783,-1718.73,0.00020978,2]
[321925181,1712637043792,-1981.85,0.00020978,2]
[321925182,1712637043801,-1128.99,0.00020978,2]
[321925184,1712637043810,-1039.91,0.00020978,2]
[321925186,1712637043819,-500.0,0.00020978,2]
[321925189,1712637043828,-990.75,0.00020978,2]
[321925190,1712637043839,-2077.36,0.00020978,2]
[321925192,1712637043848,-1952.39,0.00020978,2]
[321925194,1712637043857,-2705.35,0.00020978,2]
[321925196,1712637043866,-955.64,0.00020978,2]
[321925198,1712637043875,-500.0,0.00020978,2]
[321925200,1712637043884,-1566.79,0.00020978,2]
[321925202,1712637043893,-500.0,0.00020978,2]
[321925204,1712637043902,-500.0,0.00020978,2]
[321925206,1712637043911,-500.0,0.00020978,2]
[321925208,1712637043920,-515.19210534,0.00020978,2]
[321925210,1712637043929,-500.0,0.00020978,2]
[321925212,1712637043939,-1628.51,0.00020978,2]
[321925214,1712637043947,-2253.81,0.00020978,2]
[321925216,1712637043957,-1581.49,0.00020978,2]
[321925218,1712637043966,-918.68,0.00020978,2]
[321925221,1712637043976,-500.0,0.00020978,2]
[321925223,1712637043985,-777.49,0.00020978,2]
[321925225,1712637043994,-534.90736733,0.00020978,2]
[321925227,1712637044003,-522.09349027,0.00020978,2]
[321925229,1712637044014,-1772.76,0.00020978,2]
[321925231,1712637044023,-1191.7,0.00020978,2]
[321925233,1712637044031,-1570.44,0.00020978,2]
[321925235,1712637044040,-889.42447982,0.00020978,2]
[321925248,1712637044158,-1132.14552018,0.00020978,2]
[321925250,1712637044168,-1637.46,0.00020978,2]
[321925252,1712637044177,-500.0,0.00020978,2]
[321925254,1712637044187,-516.05538374,0.00020978,2]
[321925256,1712637044198,-688.8,0.00020978,2]
[321925258,1712637044207,-500.0,0.00020978,2]
[321925260,1712637044216,-500.0,0.00020978,2]
[321925262,1712637044225,-1426.57,0.00020978,2]
[321925264,1712637044236,-611.3,0.00020978,2]
[321925266,1712637044246,-500.0,0.00020978,2]
[321925269,1712637044255,-500.0,0.00020978,2]
[321925270,1712637044264,-500.0,0.00020978,2]
[321925272,1712637044276,-500.0,0.00020978,2]
[321925275,1712637044286,-747.58,0.00020978,2]
[321925277,1712637044295,-1641.75,0.00020978,2]
[321925279,1712637044305,-2239.65,0.00020978,2]
[321925281,1712637044314,-659.66,0.00020978,2]
[321925283,1712637044322,-1462.11,0.00020978,2]
[321925285,1712637044331,-2673.62,0.00020978,2]
[321925287,1712637044341,-500.0,0.00020978,2]
[321925289,1712637044351,-1484.22,0.00020978,2]
[321925291,1712637044359,-503.49227843,0.00020978,2]
[321925293,1712637044369,-2690.36,0.00020978,2]
[321925294,1712637044378,-500.0,0.00020978,2]
[321925297,1712637044387,-508.31478515,0.00020978,2]
[321925298,1712637044396,-501.69753348,0.00020978,2]
[321925300,1712637044406,-500.0,0.00020978,2]
[321925302,1712637044415,-500.0,0.00020978,2]
[321925304,1712637044424,-519.14096932,0.00020978,2]
[321925305,1712637044434,-500.0,0.00020978,2]
[321925306,1712637044443,-500.0,0.00020978,2]
[321925307,1712637044452,-500.0,0.00020978,2]
[321925308,1712637044462,-1460.0,0.00020978,2]
[321925309,1712637044471,-1557.83,0.00020978,2]
[321925311,1712637044482,-500.0,0.00020978,2]
[321925313,1712637044491,-4321.18,0.00020978,2]
[321925315,1712637044501,-500.0,0.00020978,2]
[321925317,1712637044510,-860.86,0.00020978,2]
[321925319,1712637044519,-11590.38,0.00020978,2]
[321925321,1712637044529,-500.0,0.00020978,2]
[321925323,1712637044539,-2738.4,0.00020978,2]
[321925325,1712637044548,-503.45683852,0.00020978,2]
[321925327,1712637044558,-5058.04,0.00020978,2]
[321925329,1712637044567,-1449.88,0.00020978,2]
[321925331,1712637044576,-3147.14,0.00020978,2]
[321925333,1712637044588,-8104.08,0.00020978,2]
[321925335,1712637044597,-500.0,0.00020978,2]
[321925337,1712637044606,-1760.67,0.00020978,2]
[321925339,1712637044616,-2620.05,0.00020978,2]
[321925341,1712637044625,-25405.01,0.00020978,2]
[321925343,1712637044634,-2555.77,0.00020978,2]
[321925345,1712637044643,-500.0,0.00020978,2]
[321925347,1712637044653,-500.0,0.00020978,2]
[321925349,1712637044662,-2354.74,0.00020978,2]
[321925351,1712637044671,-7102.01,0.00020978,2]
[321925353,1712637044681,-1699.3,0.00020978,2]
[321925355,1712637044690,-500.0,0.00020978,2]
[321925357,1712637044700,-500.0,0.00020978,2]
[321925359,1712637044709,-13932.31,0.00020978,2]
[321925361,1712637044719,-2881.51,0.00020978,2]
[321925363,1712637044728,-500.0,0.00020978,2]
[321925365,1712637044738,-500.0,0.00020978,2]
[321925367,1712637044747,-500.0,0.00020978,2]
[321925369,1712637044757,-4326.3,0.00020978,2]
[321925371,1712637044766,-2412.11,0.00020978,2]
[321925373,1712637044776,-2081.52,0.00020978,2]